[Event "ESCC-65 2022"]
[Site "Lublin"]
[Date "2022.07.08"]
[Round "4.3"]
[White "Lederman, Leon"]
[Black "Stebbings, Anthony J"]
[Result "1-0"]
[ECO "B44"]
[WhiteElo "2213"]
[BlackElo "2283"]
[Annotator "RC"]
[PlyCount "117"]
[EventDate "2022.07.05"]
[EventType "swiss"]
[EventCountry "POL"]
[SourceTitle "playchess.com"]
[Source "ChessBase"]
[SourceQuality "1"]
[TimeControl "40/5400+30:1800+30"]

1. e4 {[%emt 0:00:03]} c5 {[%emt 0:00:05]} 2. Nf3 {[%emt 0:00:03]} e6 {[%emt 0:00:04]} 3. d4 {[%emt 0:00:05]} cxd4 {[%emt 0:00:04]} 4. Nxd4 {[%emt 0:00:03]} Nc6 {[%emt 0:00:05]} 5. Nb5 {[%emt 0:00:05]} d6 {[%emt 0:00:07]} 6. c4 {[%emt 0:00:03]} Nf6 {[%emt 0:00:10]} 7. N5c3 {[%emt 0:00:33]} Be7 {[%emt 0:00:21]} 8. Be2 {[%emt 0:00:06]} O-O {[%emt 0:00:05]} 9. Be3 {[%emt 0:00:03]} b6 {[%emt 0:00:42]} 10. f4 {[%emt 0:00:12]} Bb7 {[%emt 0:00:15]} 11. Bf3 Rc8 {[%emt 0:01:12]} 12. O-O {[%emt 0:00:21]} Ba6 {[%emt 0:07:15]} 13. b3 {[%emt 0:03:35]} Re8 {[%emt 0:07:08]} 14. Rf2 {[%emt 0:03:03]} Qc7 {[%emt 0:06:37]} 15. Na3 {[%emt 0:03:00]} Qb8 {[%emt 0:02:31]} 16. Nab5 {[%emt 0:03:31]} Red8 {[%emt 0:03:20]} 17. Rd2 {[%emt 0:04:28]} Bb7 {[%emt 0:01:55]} 18. Qe1 {[%emt 0:05:27]} Ba8 {[%emt 0:02:24]} 19. Rad1 {[%emt 0:01:49]} a6 {[%emt 0:03:45]} 20. Nd4 {[%emt 0:06:47]} Nxd4 {[%emt 0:08:15]} 21. Rxd4 {[%emt 0:02:29]} b5 {[%emt 0:05:45]} 22. cxb5 {[%emt 0:16:01]} axb5 {[%emt 0:00:05]} 23. a4 {[%emt 0:00:07]} bxa4 {[%emt 0:01:04]} 24. bxa4 {[%emt 0:00:08]} e5 {[%emt 0:06:27]} 25. fxe5 {[%emt 0:04:26]} dxe5 {[%emt 0:00:07]} 26. Rxd8+ {[%emt 0:00:06]} Bxd8 {[%emt 0:05:41]} 27. Nd5 {[%emt 0:02:18]} Nxd5 {[%emt 0:12:32]} 28. exd5 {[%emt 0:00:17]} Bb6 {[%emt 0:00:11]} 29. d6 {[%emt 0:04:29]} Bxf3 {[%emt 0:01:30]} 30. gxf3 {[%emt 0:00:06]} Rd8 {[%emt 0:03:47]} 31. d7 {[%emt 0:04:14]} f6 {[%emt 0:05:05]} 32. a5 {[%emt 0:04:49]} Bxe3+ {[%emt 0:00:17]} 33. Qxe3 {[%emt 0:00:02]} Qc7 {[%emt 0:01:46]} 34. Qb3+ {[%emt 0:00:57]} Kf8 {[%emt 0:00:14]} 35. Qb5 {[%emt 0:02:55]} Ke7 {[%emt 0:01:24]} 36. a6 {[%emt 0:00:50]} Qa7+ {[%emt 0:03:38]} 37. Kg2 {[%emt 0:01:19]} h5 {[%emt 0:06:41]} 38. Qc6 {[%emt 0:07:11]} Qe3 {[%emt 0:01:43]} 39. Qd6+ {[%emt 0:03:04]} Kf7 {[%emt 0:00:14]} 40. Qd3 {[%emt 0:00:00]} Qa7 {[%emt 0:00:00]} 41. Qd5+ {[%emt 0:07:28]} Ke7 {[%emt 0:02:01]} 42. Qd6+ {[%emt 0:00:13]} Kf7 {[%emt 0:00:05]} 43. Rd3 {[%emt 0:00:13]} h4 {[%emt 0:12:46]} 44. Qc6 {[%emt 0:07:48]} h3+ {[%emt 0:02:08]} 45. Kf1 {[%emt 0:00:15]} Ke7 {[%emt 0:02:36]} 46. Qb5 {[%emt 0:03:56]} Ke6 {[%emt 0:03:32]} 47. Qb7 {[%emt 0:12:33]} Qc5 {[%emt 0:00:07]} 48. Qb3+ {[%emt 0:00:11]} Kf5 {[%emt 0:01:28]} 49. Qa4 {[%emt 0:00:16]} Ke6 {[%emt 0:06:48]} 50. a7 {[%emt 0:03:35]} Qc1+ {[%emt 0:03:27]} 51. Rd1 {[%emt 0:02:29]} Qb2 {[%emt 0:00:31]} 52. Qg4+ {[%emt 0:09:02]} Kf7 {[%emt 0:04:52]} 53. a8=Q {[%emt 0:04:40]} Rxa8 {[%emt 0:00:03]} 54. d8=Q {[%emt 0:00:20]} Rxd8 {[%emt 0:00:05]} 55. Qc4+ {[%emt 0:00:13]} Kg6 {[%emt 0:02:10]} 56. Rxd8 {[%emt 0:00:54]} Qg2+ {[%emt 0:00:36]} 57. Ke1 {[%emt 0:00:06]} Qxh2 {[%emt 0:00:35]} 58. Qg4+ {[%emt 0:00:19]} Kf7 {[%emt 0:00:22]} 59. Rd7+ {[%emt 0:00:11]} 1-0

[Event "ESCC-65 2022"]
[Site "Lublin"]
[Date "2022.07.08"]
[Round "4.4"]
[White "Bogdanov, Valentin"]
[Black "Praszak, Michal"]
[Result "1-0"]
[ECO "A57"]
[WhiteElo "2333"]
[BlackElo "2048"]
[Annotator "RC"]
[PlyCount "95"]
[EventDate "2022.07.05"]
[EventType "swiss"]
[EventCountry "POL"]
[SourceTitle "playchess.com"]
[Source "ChessBase"]
[SourceQuality "1"]
[TimeControl "40/5400+30:1800+30"]

1. d4 {[%emt 0:00:06]} Nf6 {[%emt 0:00:17]} 2. c4 {[%emt 0:00:12]} c5 {[%emt 0:00:12]} 3. d5 {[%emt 0:00:07]} b5 {[%emt 0:00:11]} 4. Qc2 {[%emt 0:00:49]} bxc4 {[%emt 0:00:23]} 5. e4 {[%emt 0:00:33]} d6 {[%emt 0:00:03]} 6. Bxc4 {[%emt 0:01:26]} g6 {[%emt 0:00:25]} 7. Nf3 {[%emt 0:02:02]} Nbd7 {[%emt 0:00:12]} 8. O-O {[%emt 0:01:31]} Bg7 {[%emt 0:00:07]} 9. Bd2 {[%emt 0:03:34]} O-O {[%emt 0:00:21]} 10. Bc3 {[%emt 0:00:35]} Nb6 {[%emt 0:02:02]} 11. Nbd2 {[%emt 0:02:24]} a5 {[%emt 0:00:57]} 12. a4 {[%emt 0:02:41]} Nfd7 {[%emt 0:06:53]} 13. Bxg7 Kxg7 14. Rfe1 {[%emt 0:04:45]} f6 {[%emt 0:01:47]} 15. Bb5 {[%emt 0:03:02]} Ba6 {[%emt 0:02:54]} 16. Bc6 {[%emt 0:01:20]} Ra7 {[%emt 0:03:54]} 17. Qc3 {[%emt 0:01:23]} Bc8 {[%emt 0:04:12]} 18. b3 {[%emt 0:10:03]} Ne5 {[%emt 0:01:14]} 19. Nxe5 {[%emt 0:00:48]} fxe5 {[%emt 0:00:07]} 20. Nc4 {[%emt 0:02:07]} Nxc4 {[%emt 0:00:21]} 21. bxc4 {[%emt 0:00:19]} Bd7 {[%emt 0:02:54]} 22. Bxd7 {[%emt 0:01:14]} Qxd7 {[%emt 0:00:31]} 23. Reb1 {[%emt 0:00:15]} Qg4 {[%emt 0:03:16]} 24. f3 {[%emt 0:01:09]} Qg5 {[%emt 0:00:36]} 25. Rb5 {[%emt 0:00:52]} h5 {[%emt 0:01:22]} 26. Qc1 {[%emt 0:06:43]} Qxc1+ {[%emt 0:03:30]} 27. Rxc1 {[%emt 0:00:01]} g5 {[%emt 0:00:18]} 28. Rc3 {[%emt 0:04:47]} Kg6 {[%emt 0:02:29]} 29. Rcb3 {[%emt 0:02:03]} Kf6 {[%emt 0:01:02]} 30. Kf2 {[%emt 0:02:03]} Rg8 {[%emt 0:03:33]} 31. Rb8 {[%emt 0:05:09]} Ra8 {[%emt 0:02:29]} 32. Rxg8 {[%emt 0:00:48]} Rxg8 {[%emt 0:00:03]} 33. Rb5 {[%emt 0:00:20]} Ra8 {[%emt 0:00:15]} 34. Kg3 {[%emt 0:00:24]} Ra6 {[%emt 0:07:52]} 35. Rb8 {[%emt 0:00:33]} e6 {[%emt 0:01:40]} 36. dxe6 {[%emt 0:03:07]} Kxe6 {[%emt 0:00:21]} 37. h4 {[%emt 0:02:03]} Kf6 {[%emt 0:01:03]} 38. Kh3 {[%emt 0:00:55]} Ra7 {[%emt 0:01:10]} 39. Rf8+ {[%emt 0:04:47]} Kg6 {[%emt 0:04:03]} 40. Rg8+ {[%emt 0:01:55]} Kh7 {[%emt 0:00:02]} 41. Rd8 {[%emt 0:02:02]} Rb7 {[%emt 0:03:27]} 42. hxg5 {[%emt 0:00:24]} Rb4 {[%emt 0:00:37]} 43. Kh4 {[%emt 0:00:24]} Rxc4 {[%emt 0:00:55]} 44. Rd7+ {[%emt 0:00:26]} Kg8 {[%emt 0:00:25]} 45. Kxh5 {[%emt 0:00:13]} Rd4 {[%emt 0:00:37]} 46. Kg6 {[%emt 0:02:08]} Kf8 {[%emt 0:00:02]} 47. Kf6 {[%emt 0:00:24]} Ke8 {[%emt 0:00:06]} 48. Ra7 {[%emt 0:00:34]} 1-0

[Event "ESCC-65 2022"]
[Site "Lublin"]
[Date "2022.07.08"]
[Round "4.5"]
[White "Malesevic, Nedeljko"]
[Black "Neumann, Joachim"]
[Result "1-0"]
[ECO "E17"]
[WhiteElo "2228"]
[BlackElo "2082"]
[Annotator "RC"]
[PlyCount "81"]
[EventDate "2022.07.05"]
[EventType "swiss"]
[EventCountry "POL"]
[SourceTitle "playchess.com"]
[Source "ChessBase"]
[SourceQuality "1"]
[TimeControl "40/5400+30:1800+30"]

1. d4 {[%emt 0:00:04]} Nf6 2. c4 {[%emt 0:00:14]} e6 {[%emt 0:00:38]} 3. Nf3 {[%emt 0:00:11]} b6 {[%emt 0:00:47]} 4. g3 {[%emt 0:00:13]} Bb7 {[%emt 0:00:11]} 5. Bg2 {[%emt 0:00:08]} Be7 {[%emt 0:00:09]} 6. O-O {[%emt 0:00:25]} O-O {[%emt 0:00:09]} 7. d5 {[%emt 0:03:10]} exd5 {[%emt 0:18:55]} 8. Nh4 {[%emt 0:00:18]} c6 {[%emt 0:04:04]} 9. cxd5 {[%emt 0:00:45]} Nxd5 {[%emt 0:11:29]} 10. Nf5 {[%emt 0:00:23]} Bc5 {[%emt 0:16:51]} 11. e4 {[%emt 0:02:50]} Ne7 {[%emt 0:09:00]} 12. Nd6 {[%emt 0:06:48]} Ba6 {[%emt 0:01:11]} 13. Re1 {[%emt 0:01:07]} Nc8 {[%emt 0:00:09]} 14. Nf5 {[%emt 0:05:36]} Ne7 {[%emt 0:04:08]} 15. Ne3 {[%emt 0:06:06]} Bb7 {[%emt 0:06:43]} 16. Nc3 {[%emt 0:03:38]} Re8 {[%emt 0:00:43]} 17. Nc4 {[%emt 0:14:18]} d5 {[%emt 0:03:15]} 18. exd5 {[%emt 0:04:11]} Nxd5 {[%emt 0:02:18]} 19. Rxe8+ {[%emt 0:07:02]} Qxe8 {[%emt 0:00:03]} 20. Nxd5 {[%emt 0:01:42]} cxd5 {[%emt 0:00:17]} 21. Be3 {[%emt 0:04:21]} Bxe3 {[%emt 0:09:01]} 22. Nxe3 {[%emt 0:00:28]} Na6 {[%emt 0:00:51]} 23. Bxd5 {[%emt 0:12:39]} Bxd5 {[%emt 0:05:30]} 24. Qxd5 {[%emt 0:00:22]} Nc5 {[%emt 0:01:58]} 25. Rd1 {[%emt 0:01:05]} h6 {[%emt 0:01:27]} 26. b4 {[%emt 0:02:24]} Ne6 {[%emt 0:00:19]} 27. Qb7 {[%emt 0:02:54]} Qc8 {[%emt 0:00:06]} 28. Qd5 {[%emt 0:02:00]} Qe8 {[%emt 0:00:50]} 29. Nf5 {[%emt 0:05:14]} Rd8 {[%emt 0:00:50]} 30. Nd6 {[%emt 0:01:06]} Qd7 {[%emt 0:01:29]} 31. Rd2 {[%emt 0:00:44]} Qe7 {[%emt 0:00:14]} 32. Kf1 {[%emt 0:06:28]} Qf6 {[%emt 0:00:20]} 33. Qc4 {[%emt 0:03:44]} Qe5 {[%emt 0:01:23]} 34. Rd5 {[%emt 0:01:22]} Qa1+ {[%emt 0:00:45]} 35. Kg2 {[%emt 0:00:07]} Qe1 {[%emt 0:00:49]} 36. h4 {[%emt 0:00:46]} Qb1 {[%emt 0:00:10]} 37. Nf5 {[%emt 0:00:56]} Rxd5 {[%emt 0:00:05]} 38. Ne7+ {[%emt 0:00:11]} Kh7 {[%emt 0:00:05]} 39. Qxd5 {[%emt 0:00:14]} Qc2 {[%emt 0:00:17]} 40. Qa8 {[%emt 0:00:00]} Nf4+ {[%emt 0:00:00]} 41. gxf4 1-0

[Event "ESCC-65 2022"]
[Site "Lublin"]
[Date "2022.07.08"]
[Round "4.6"]
[White "Biro, Sandor"]
[Black "Schulz, Michael"]
[Result "1/2-1/2"]
[ECO "B10"]
[WhiteElo "2116"]
[BlackElo "2217"]
[Annotator "ChessBase"]
[PlyCount "148"]
[EventDate "2022.07.05"]
[EventType "swiss"]
[EventCountry "POL"]
[SourceTitle "playchess.com"]
[Source "ChessBase"]
[SourceQuality "1"]
[TimeControl "40/5400+30:1800+30"]

1. e4 {[%emt 0:00:04]} c6 {[%emt 0:00:12]} 2. Nf3 {[%emt 0:04:00]} d5 {[%emt 0:00:34]} 3. exd5 {[%emt 0:02:51]} cxd5 {[%emt 0:00:52]} 4. Ne5 {[%emt 0:00:09]} Nc6 {[%emt 0:00:32]} 5. d4 {[%emt 0:00:08]} e6 {[%emt 0:00:25]} 6. c3 {[%emt 0:02:36]} Bd6 {[%emt 0:00:36]} 7. Bb5 {[%emt 0:06:15]} Nge7 {[%emt 0:00:20]} 8. Qh5 {[%emt 0:11:08]} O-O {[%emt 0:05:08]} 9. O-O {[%emt 0:12:44]} Qc7 {[%emt 0:05:49]} 10. f4 {[%emt 0:08:17]} f6 {[%emt 0:03:53]} 11. Nd2 {[%emt 0:07:47]} g6 {[%emt 0:14:11]} 12. Qe2 {[%emt 0:02:24]} fxe5 {[%emt 0:02:08]} 13. fxe5 {[%emt 0:00:10]} Rxf1+ {[%emt 0:00:13]} 14. Nxf1 {[%emt 0:11:19]} Bxe5 {[%emt 0:05:14]} 15. dxe5 {[%emt 0:00:15]} Qxe5 {[%emt 0:01:12]} 16. Qf2 {[%emt 0:02:14]} Bd7 {[%emt 0:01:15]} 17. Bh6 {[%emt 0:03:22]} Qh5 {[%emt 0:01:43]} 18. Qd2 {[%emt 0:01:01]} Nf5 {[%emt 0:00:51]} 19. Bf4 {[%emt 0:02:26]} Rf8 {[%emt 0:10:32]} 20. Re1 {[%emt 0:02:42]} Nh4 {[%emt 0:03:48]} 21. Ng3 {[%emt 0:04:13]} Qg4 {[%emt 0:00:33]} 22. Bd6 {[%emt 0:00:24]} Rf7 {[%emt 0:02:37]} 23. h3 {[%emt 0:00:56]} Qxh3 {[%emt 0:00:19]} 24. Qe2 {[%emt 0:02:01]} Nxg2 {[%emt 0:07:08]} 25. Qxg2 {[%emt 0:01:03]} Qh4 {[%emt 0:01:24]} 26. Rf1 {[%emt 0:01:55]} e5 {[%emt 0:02:33]} 27. Rxf7 {[%emt 0:00:54]} Kxf7 {[%emt 0:00:12]} 28. Qxd5+ {[%emt 0:00:19]} Be6 {[%emt 0:00:08]} 29. Qf3+ {[%emt 0:06:45]} Qf6 {[%emt 0:00:09]} 30. Qxf6+ {[%emt 0:01:11]} Kxf6 {[%emt 0:00:04]} 31. Ne4+ {[%emt 0:01:11]} Kf5 {[%emt 0:00:39]} 32. Nc5 {[%emt 0:00:42]} Bxa2 {[%emt 0:01:38]} 33. Nxb7 {[%emt 0:00:25]} Bd5 {[%emt 0:00:19]} 34. Nc5 {[%emt 0:00:51]} h5 {[%emt 0:01:31]} 35. Ba6 {[%emt 0:01:14]} g5 {[%emt 0:01:20]} 36. b4 {[%emt 0:00:26]} h4 {[%emt 0:02:54]} 37. Bc8+ {[%emt 0:00:45]} Kf4 {[%emt 0:00:33]} 38. b5 {[%emt 0:00:38]} Na5 {[%emt 0:00:13]} 39. Nd3+ {[%emt 0:00:30]} Ke3 {[%emt 0:00:09]} 40. Nxe5 {[%emt 0:00:00]} Kd2 {[%emt 0:00:00]} 41. Bb4 {[%emt 0:03:11]} Nc4 {[%emt 0:05:31]} 42. Ng4 {[%emt 0:01:32]} Kc2 {[%emt 0:01:33]} 43. Nf6 {[%emt 0:07:26]} Bf3 {[%emt 0:03:08]} 44. Kf2 {[%emt 0:04:14]} Bd1 {[%emt 0:00:15]} 45. Be6 {[%emt 0:02:09]} Ne5 {[%emt 0:01:02]} 46. Bf5+ {[%emt 0:03:24]} Kb3 {[%emt 0:00:34]} 47. Bd6 {[%emt 0:00:42]} Nc4 {[%emt 0:01:06]} 48. Bb8 {[%emt 0:02:28]} Na3 {[%emt 0:00:14]} 49. Be6+ {[%emt 0:09:02]} Kxc3 {[%emt 0:00:44]} 50. Be5+ {[%emt 0:00:27]} Kd3 {[%emt 0:01:08]} 51. Bd7 {[%emt 0:01:08]} Kc4 {[%emt 0:01:16]} 52. Bb8 {[%emt 0:01:39]} Nxb5 {[%emt 0:00:17]} 53. Ne4 {[%emt 0:00:44]} Kd4 {[%emt 0:00:40]} 54. Nxg5 {[%emt 0:00:22]} a6 {[%emt 0:00:55]} 55. Bc8 {[%emt 0:00:27]} a5 {[%emt 0:00:32]} 56. Ke1 {[%emt 0:00:27]} Bb3 {[%emt 0:00:58]} 57. Nf3+ {[%emt 0:00:31]} Kd5 {[%emt 0:00:40]} 58. Nxh4 {[%emt 0:00:28]} a4 {[%emt 0:00:15]} 59. Nf3 {[%emt 0:00:38]} a3 {[%emt 0:01:12]} 60. Be5 {[%emt 0:00:33]} a2 {[%emt 0:01:16]} 61. Bb2 {[%emt 0:00:38]} Kc5 {[%emt 0:00:55]} 62. Kd2 {[%emt 0:00:24]} Bd5 {[%emt 0:00:29]} 63. Ne5 {[%emt 0:00:20]} Kb4 {[%emt 0:01:26]} 64. Bd7 {[%emt 0:00:46]} Nd6 {[%emt 0:00:36]} 65. Nd3+ {[%emt 0:00:28]} Kb3 {[%emt 0:01:10]} 66. Bg7 {[%emt 0:00:26]} Ne4+ {[%emt 0:01:41]} 67. Ke3 Nc3 {[%emt 0:00:42]} 68. Nc1+ {[%emt 0:00:25]} Kc2 {[%emt 0:00:20]} 69. Bf5+ {[%emt 0:01:11]} Kxc1 {[%emt 0:01:22]} 70. Bxc3 {[%emt 0:00:07]} Bb3 {[%emt 0:00:57]} 71. Bd3 {[%emt 0:00:29]} Bc2 {[%emt 0:00:34]} 72. Bc4 {[%emt 0:00:53]} Kb1 {[%emt 0:01:46]} 73. Kd2 {[%emt 0:00:07]} a1=Q {[%emt 0:01:33]} 74. Bxa1 {[%emt 0:00:09]} Kxa1 {[%emt 0:00:04]} 1/2-1/2

[Event "ESCC-65 2022"]
[Site "Lublin"]
[Date "2022.07.08"]
[Round "4.7"]
[White "Rak, Tomasz"]
[Black "Chapman, Terry P D"]
[Result "0-1"]
[ECO "A46"]
[WhiteElo "1887"]
[BlackElo "2207"]
[Annotator "RC"]
[PlyCount "78"]
[EventDate "2022.07.05"]
[EventType "swiss"]
[EventCountry "POL"]
[SourceTitle "playchess.com"]
[Source "ChessBase"]
[SourceQuality "1"]
[TimeControl "40/5400+30:1800+30"]

1. Nf3 Nf6 2. d4 {[%emt 0:00:53]} e6 {[%emt 0:00:36]} 3. Bg5 {[%emt 0:00:11]} h6 {[%emt 0:01:05]} 4. Bf4 {[%emt 0:00:12]} c5 {[%emt 0:01:04]} 5. e3 {[%emt 0:02:24]} b6 {[%emt 0:00:15]} 6. Nbd2 {[%emt 0:00:38]} Bb7 {[%emt 0:00:13]} 7. Bd3 {[%emt 0:01:25]} cxd4 {[%emt 0:01:12]} 8. exd4 {[%emt 0:00:05]} Be7 {[%emt 0:00:07]} 9. c3 {[%emt 0:00:44]} Nh5 {[%emt 0:01:42]} 10. Be3 {[%emt 0:02:34]} Qc7 {[%emt 0:00:55]} 11. Ne5 {[%emt 0:07:55]} Nf6 {[%emt 0:03:25]} 12. Qe2 {[%emt 0:01:03]} d6 {[%emt 0:03:47]} 13. Bb5+ {[%emt 0:06:05]} Nc6 {[%emt 0:04:01]} 14. Nxc6 {[%emt 0:01:50]} Bxc6 {[%emt 0:00:06]} 15. Bd3 {[%emt 0:00:32]} Qb7 {[%emt 0:11:34]} 16. Rg1 {[%emt 0:05:15]} b5 {[%emt 0:01:39]} 17. O-O-O {[%emt 0:01:01]} Nd5 {[%emt 0:09:13]} 18. Kb1 {[%emt 0:03:07]} Rb8 {[%emt 0:00:50]} 19. Ka1 {[%emt 0:02:34]} Kd7 {[%emt 0:12:48]} 20. Nf1 {[%emt 0:07:49]} Bf6 {[%emt 0:03:43]} 21. f4 {[%emt 0:03:29]} b4 {[%emt 0:02:58]} 22. c4 {[%emt 0:01:49]} Nxe3 {[%emt 0:01:20]} 23. Qxe3 {[%emt 0:02:12]} d5 {[%emt 0:06:48]} 24. g4 {[%emt 0:03:42]} dxc4 {[%emt 0:04:12]} 25. Bxc4 {[%emt 0:01:15]} Bd5 {[%emt 0:00:24]} 26. Bxd5 {[%emt 0:06:07]} Qxd5 {[%emt 0:00:49]} 27. g5 {[%emt 0:00:30]} hxg5 {[%emt 0:00:26]} 28. fxg5 {[%emt 0:00:04]} Be7 {[%emt 0:00:47]} 29. Qd2 {[%emt 0:01:50]} Rb5 {[%emt 0:10:48]} 30. g6 {[%emt 0:04:41]} Ra5 {[%emt 0:05:47]} 31. b3 {[%emt 0:00:27]} Qxb3 {[%emt 0:05:10]} 32. Ne3 {[%emt 0:02:59]} Rh3 {[%emt 0:04:37]} 33. Ng4 {[%emt 0:01:07]} f6 {[%emt 0:01:04]} 34. d5 {[%emt 0:09:40]} exd5 {[%emt 0:00:57]} 35. Rc1 {[%emt 0:02:32]} Qd3 {[%emt 0:00:50]} 36. Qb2 {[%emt 0:01:28]} b3 {[%emt 0:01:43]} 37. Nf2 {[%emt 0:00:38]} Qa6 {[%emt 0:01:04]} 38. Qd4 {[%emt 0:01:02]} Rxh2 {[%emt 0:00:56]} 39. Qg4+ {[%emt 0:00:51]} Kd8 {[%emt 0:00:18]} 0-1

[Event "ESCC-65 2022"]
[Site "Lublin"]
[Date "2022.07.08"]
[Round "4.8"]
[White "Wagner-Michel, Annett"]
[Black "Krupa, Jerzy"]
[Result "0-1"]
[ECO "B28"]
[WhiteElo "2056"]
[BlackElo "1771"]
[Annotator "NA"]
[PlyCount "138"]
[EventDate "2022.07.05"]
[EventType "swiss"]
[EventCountry "POL"]
[SourceTitle "playchess.com"]
[Source "ChessBase"]
[SourceQuality "1"]
[TimeControl "40/5400+30:1800+30"]

1. e4 {[%emt 0:00:07]} c5 {[%emt 0:00:13]} 2. Nf3 {[%emt 0:00:03]} a6 {[%emt 0:00:11]} 3. c4 {[%emt 0:01:03]} Nc6 {[%emt 0:00:28]} 4. d4 {[%emt 0:02:20]} cxd4 {[%emt 0:00:17]} 5. Nxd4 {[%emt 0:00:04]} Nf6 {[%emt 0:02:22]} 6. Nc3 {[%emt 0:00:53]} d6 {[%emt 0:01:01]} 7. Be2 {[%emt 0:01:37]} g6 {[%emt 0:00:20]} 8. Be3 {[%emt 0:01:17]} Bg7 {[%emt 0:00:16]} 9. O-O {[%emt 0:04:54]} O-O {[%emt 0:00:09]} 10. Rc1 {[%emt 0:02:37]} Bd7 {[%emt 0:07:29]} 11. Kh1 {[%emt 0:04:36]} Nxd4 {[%emt 0:02:07]} 12. Bxd4 {[%emt 0:02:40]} Bc6 {[%emt 0:00:07]} 13. f3 {[%emt 0:01:56]} Nd7 {[%emt 0:10:18]} 14. Bxg7 {[%emt 0:08:47]} Kxg7 {[%emt 0:00:08]} 15. b4 {[%emt 0:00:26]} b6 {[%emt 0:02:52]} 16. Qd4+ {[%emt 0:03:30]} Kg8 {[%emt 0:05:29]} 17. Rfd1 {[%emt 0:02:35]} Bb7 {[%emt 0:05:41]} 18. Qe3 {[%emt 0:07:44]} Rc8 {[%emt 0:02:26]} 19. f4 {[%emt 0:05:23]} Rc7 {[%emt 0:07:47]} 20. Rd4 {[%emt 0:13:29]} Qa8 {[%emt 0:01:52]} 21. Rcd1 {[%emt 0:04:57]} Nf6 {[%emt 0:04:45]} 22. Bf3 {[%emt 0:04:09]} Rfc8 {[%emt 0:00:51]} 23. Na4 {[%emt 0:01:40]} Qa7 {[%emt 0:02:55]} 24. e5 {[%emt 0:03:41]} Bxf3 {[%emt 0:04:10]} 25. Qxf3 {[%emt 0:03:41]} dxe5 {[%emt 0:00:49]} 26. fxe5 {[%emt 0:01:14]} Nd7 {[%emt 0:01:03]} 27. Qe2 {[%emt 0:04:48]} Nf8 {[%emt 0:01:22]} 28. c5 {[%emt 0:01:34]} bxc5 {[%emt 0:03:20]} 29. Nxc5 {[%emt 0:00:04]} a5 {[%emt 0:00:28]} 30. e6 {[%emt 0:01:17]} f6 {[%emt 0:06:25]} 31. a3 {[%emt 0:00:15]} axb4 {[%emt 0:00:08]} 32. axb4 {[%emt 0:00:02]} Kg7 {[%emt 0:05:07]} 33. h3 {[%emt 0:01:52]} Qb6 {[%emt 0:06:48]} 34. Qe3 {[%emt 0:00:46]} Rc6 {[%emt 0:02:10]} 35. Re4 {[%emt 0:01:44]} Rd6 {[%emt 0:01:58]} 36. Re1 {[%emt 0:02:20]} Rcc6 {[%emt 0:01:18]} 37. Rh4 {[%emt 0:01:24]} h5 {[%emt 0:01:05]} 38. Re4 {[%emt 0:01:10]} g5 {[%emt 0:01:29]} 39. Qf3 {[%emt 0:01:39]} h4 {[%emt 0:07:03]} 40. Qf5 {[%emt 0:00:00]} Qb5 {[%emt 0:00:00]} 41. Qf3 {[%emt 0:10:23]} Ng6 {[%emt 0:05:10]} 42. Qa3 {[%emt 0:11:03]} Rc8 {[%emt 0:05:24]} 43. Qe3 {[%emt 0:03:12]} Rcd8 {[%emt 0:00:59]} 44. Rg4 {[%emt 0:01:12]} Rd2 {[%emt 0:01:11]} 45. Qc3 {[%emt 0:00:37]} Rd1 {[%emt 0:02:36]} 46. Rge4 {[%emt 0:00:51]} Qc6 {[%emt 0:01:26]} 47. Qe3 {[%emt 0:02:47]} Nf4 {[%emt 0:01:32]} 48. Nd7 {[%emt 0:01:53]} Rxe1+ {[%emt 0:00:56]} 49. Qxe1 {[%emt 0:00:02]} Qc2 {[%emt 0:00:12]} 50. Rxf4 {[%emt 0:01:04]} gxf4 {[%emt 0:00:34]} 51. Qxh4 {[%emt 0:00:25]} Qf5 {[%emt 0:01:38]} 52. Qg4+ {[%emt 0:03:19]} Qxg4 {[%emt 0:00:12]} 53. hxg4 {[%emt 0:00:01]} Rc8 {[%emt 0:00:31]} 54. b5 {[%emt 0:00:33]} Rc1+ {[%emt 0:01:37]} 55. Kh2 {[%emt 0:00:02]} Rb1 {[%emt 0:00:01]} 56. b6 {[%emt 0:00:09]} Kg6 {[%emt 0:00:32]} 57. Nf8+ {[%emt 0:01:31]} Kh6 {[%emt 0:01:54]} 58. Nd7 {[%emt 0:01:43]} Kg5 {[%emt 0:00:14]} 59. g3 {[%emt 0:00:28]} f3 {[%emt 0:01:01]} 60. Nc5 {[%emt 0:00:34]} Rxb6 {[%emt 0:00:45]} 61. Kg1 {[%emt 0:00:24]} Kxg4 {[%emt 0:01:03]} 62. Kf2 {[%emt 0:00:58]} Rb2+ {[%emt 0:00:20]} 63. Kf1 {[%emt 0:01:03]} Kxg3 {[%emt 0:00:47]} 64. Ne4+ {[%emt 0:00:04]} Kf4 {[%emt 0:00:35]} 65. Nc3 {[%emt 0:00:59]} Rc2 {[%emt 0:01:25]} 66. Nd1 {[%emt 0:01:55]} Kg3 {[%emt 0:00:58]} 67. Ke1 {[%emt 0:00:04]} Rc1 {[%emt 0:00:41]} 68. Kd2 {[%emt 0:00:02]} Rxd1+ {[%emt 0:00:11]} 69. Kxd1 {[%emt 0:00:01]} Kg2 {[%emt 0:00:23]} 0-1